bitfinex-derivatives/quotes_ETHF0:USTF0_20250804
["timestamp","ask_amount","ask_price","bid_price","bid_amount"]
[1754324072741,21.2946,3663.9,3663.8,2.40593]
[1754324073140,21.98628148,3663.9,3663.8,2.40593]
[1754324073639,21.2946,3663.9,3663.8,0.5061]
[1754324073839,21.2946,3663.9,3663.7,0.54584]
[1754324073840,1.71603,3663.8,3663.7,0.5061]
[1754324074143,1.1702,3663.8,3663.7,1.1937]
[1754324074341,19.421,3663.9,3663.8,0.54583]
[1754324074534,0.54578,3664.2,3664.0,0.5458]
[1754324074737,0.54578,3664.2,3663.9,0.6876]
[1754324074738,1.24918,3664.2,3664.1,1.8601]
[1754324074933,0.69237709,3664.4,3664.3,0.54576]
[1754324075138,0.69237709,3664.7,3664.5,1.73943]
[1754324075340,0.97819301,3665.1,3665.0,0.54565]
[1754324075636,20.11165232,3665.1,3665.0,2.40575]
[1754324075936,0.69265232,3665.1,3665.0,2.40575]
[1754324076541,0.7034,3665.5,3665.4,2.40569]
[1754324076736,20.1224,3665.5,3665.4,2.40569]
[1754324077446,0.7034,3665.5,3665.4,2.40569]
[1754324077736,19.418,3665.5,3665.4,2.40569]
[1754324077940,0.7034,3665.7,3665.6,0.54555]
[1754324078140,20.1184,3665.7,3665.6,0.6664]
[1754324078642,20.1184,3665.7,3665.6,1.8601]
[1754324078845,20.66395,3665.7,3665.6,1.8601]
[1754324079046,0.7034,3665.6,3664.5,1.8601]
[1754324079242,39.303,3666.3,3665.8,1.23312]
[1754324079243,0.7034,3666.3,3665.8,1.23312]
[1754324079434,0.54549,3666.2,3665.2,1.36407]
[1754324079639,0.4912,3666.3,3665.8,0.54552]
[1754324079640,0.54549,3666.1,3665.8,0.54552]
[1754324079835,1.74009,3666.1,3666.0,1.1937]
[1754324080139,2.41909,3666.1,3666.0,1.1937]
[1754324080341,0.54552,3665.9,3665.3,1.8562]
[1754324080543,1.8618,3665.8,3665.7,1.1963]
[1754324080942,20.9068,3666.2,3666.0,0.5455]
[1754324081143,1.75225,3666.4,3666.2,1.8562]
[1754324081446,1.8618,3666.3,3666.2,0.5021]
[1754324081646,1.8618,3666.3,3665.2,1.36404]
[1754324081647,19.685,3666.5,3665.3,1.36402]
[1754324081946,1.8618,3666.3,3666.2,1.1963]
[1754324082248,1.8618,3666.1,3666.0,1.74179]
[1754324082445,1.8618,3666.1,3666.0,1.1963]
[1754324082744,0.54553,3665.9,3665.6,0.6942]
[1754324083040,1.20052,3665.9,3665.8,1.8562]
[1754324083442,2.40732,3665.9,3665.8,0.5021]
[1754324083646,2.40732,3665.9,3665.8,1.1963]
[1754324083948,1.8618,3665.9,3665.8,1.1963]
[1754324084442,0.655,3666.3,3666.2,1.1963]
[1754324084636,19.649,3666.4,3666.3,0.54546]
[1754324084843,20.825,3666.4,3666.3,1.8562]
[1754324085041,21.5108,3666.4,3666.3,1.8562]
[1754324085239,19.65,3666.4,3666.3,1.8562]
[1754324085437,20.826,3666.4,3666.3,1.8562]
[1754324085750,1.8618,3666.3,3666.2,1.74176]
[1754324086548,1.8618,3666.3,3666.2,2.40166]
[1754324087149,1.8618,3666.2,3666.1,0.54547]
[1754324087348,0.54547,3666.2,3665.6,1.8562]
[1754324087546,1.8618,3666.1,3665.6,1.8562]
[1754324087742,19.635,3666.0,3665.9,1.04762]
[1754324087944,19.635,3666.0,3665.9,2.40172]
[1754324088545,0.54547,3666.3,3666.0,0.54549]
[1754324088747,0.655,3666.1,3666.0,0.54549]
[1754324088948,0.655,3666.1,3666.0,1.20539]
[1754324089147,0.655,3666.1,3666.0,0.6599]
[1754324089343,0.655,3666.1,3666.0,1.1963]
[1754324089344,1.8618,3666.1,3666.0,1.1963]
[1754324090149,1.8618,3666.1,3666.0,1.8562]
[1754324090351,1.8618,3666.4,3665.6,1.36391]
[1754324090545,0.521,3666.9,3666.0,1.36377]
[1754324090746,1.0,3667.0,3666.9,2.40157]
[1754324091145,1.655,3667.0,3666.9,2.40157]
[1754324091341,1.2068,3666.9,3665.1,1.8562]
[1754324091547,0.54538,3666.9,3666.7,0.54539]
[1754324091852,1.8618,3666.8,3666.7,1.74169]
[1754324092149,1.0,3667.0,3666.5,1.1963]
[1754324092348,1.8618,3666.5,3666.4,0.54544]
[1754324092548,0.655,3666.5,3666.4,2.40164]
[1754324092855,1.8618,3666.4,3666.3,0.54545]
[1754324093649,0.54545,3666.4,3666.2,0.54546]
[1754324093850,1.8618,3666.2,3666.1,1.74178]
[1754324094353,0.655,3666.2,3666.1,2.40168]
[1754324094850,1.8618,3666.2,3666.1,1.74178]
[1754324095053,1.8618,3666.2,3666.1,1.23968]
[1754324095347,1.8618,3666.2,3666.1,1.74178]
[1754324096145,0.54548,3666.2,3666.1,0.54548]
[1754324096350,0.54548,3666.2,3665.7,1.162]
[1754324096351,1.8618,3666.1,3666.0,0.54549]
[1754324096551,1.8618,3666.1,3666.0,1.74179]
[1754324098355,1.8618,3666.1,3666.0,3.01109]
[1754324098356,3.0937,3666.1,3666.0,3.01109]
[1754324098655,1.3142,3666.4,3666.3,3.67096]
[1754324098850,0.7932,3666.6,3666.5,2.4656]
[1754324099048,21.4349,3666.6,3666.5,3.67093]
[1754324099247,3.0937,3666.6,3666.5,3.67093]
[1754324099449,4.0937,3667.0,3666.9,2.4656]
[1754324099658,23.6427,3667.0,3666.9,1.2693]
[1754324099850,2.8869,3667.0,3666.9,1.9635]
[1754324100158,22.4359,3667.0,3666.9,3.1255]
[1754324100349,1.0,3667.0,3666.9,1.8562]
[1754324100556,0.6858,3668.1,3668.0,0.6942]
[1754324100851,1.3408,3668.0,3667.9,0.54522]
[1754324101052,1.3408,3668.0,3667.9,1.23942]
[1754324101256,1.8618,3668.0,3667.9,1.23942]
[1754324102158,1.8618,3668.0,3667.9,0.6942]
[1754324102355,14.0642,3668.1,3667.6,0.9307]
[1754324102356,1.8618,3667.9,3667.7,1.23944]
[1754324102552,13.519,3668.1,3667.9,0.54521]
[1754324102858,39.271,3668.8,3668.0,0.6942]
[1754324103050,1.8618,3668.4,3668.2,0.54517]
[1754324103251,1.8618,3668.6,3668.0,0.6942]
[1754324103455,1.8618,3668.0,3667.4,1.36324]
[1754324103657,0.6858,3668.0,3667.8,0.54523]
[1754324103847,1.176,3667.9,3667.8,2.17013]
[1754324104451,1.8618,3667.9,3667.8,0.965]
[1754324105557,1.8618,3667.9,3667.7,0.54524]
[1754324105753,1.2319,3667.8,3667.7,1.00794]
[1754324106058,3.0937,3667.8,3667.7,2.43874]
[1754324106258,3.0937,3667.8,3667.7,3.43944]
[1754324106851,2.4079,3667.8,3667.7,3.43944]
[1754324107165,21.4742,3668.0,3667.9,3.43942]
[1754324107458,3.0937,3668.0,3667.9,1.8935]
[1754324107760,3.0937,3668.0,3667.9,0.9285]
[1754324109458,0.54518,3668.2,3668.1,1.9635]
[1754324109759,3.63888,3668.2,3668.1,0.4658]
[1754324109949,3.63891,3668.0,3667.9,2.43871]
[1754324110152,3.63891,3668.0,3667.9,1.8935]
[1754324110951,3.0937,3668.0,3667.9,1.8935]
[1754324112058,3.0937,3668.0,3667.9,1.6227]
[1754324112260,22.5357,3668.0,3667.9,1.6227]
[1754324113051,22.5357,3668.0,3665.3,3.4009497]
[1754324113052,0.5038,3667.6,3667.2,0.642]
[1754324113252,3.53202,3667.9,3667.8,1.7515]
[1754324113559,22.4248,3667.9,3667.8,1.7515]
[1754324114153,22.4248,3667.9,3667.8,1.4936]
[1754324114459,2.9868,3667.5,3667.4,0.54529]
[1754324114663,2.3549,3666.9,3666.8,1.99277]
[1754324114852,0.3376,3666.9,3666.8,3.26797]
[1754324115251,2.9868,3666.9,3666.8,0.8516]
[1754324115459,1.7721,3666.8,3666.5,1.18742]
[1754324115657,1.7721,3666.7,3666.6,0.5454]
[1754324115961,1.7721,3666.6,3666.5,0.54542]
[1754324116163,1.7721,3666.6,3666.5,1.18742]
[1754324116464,1.1402,3666.6,3666.5,2.07852]
[1754324116657,0.6364,3667.2,3667.1,1.5331]
[1754324117051,1.7721,3667.2,3667.1,1.5331]
[1754324117255,1.7721,3667.2,3667.0,0.54535]
[1754324117459,1.7721,3667.1,3667.0,0.54535]
[1754324117656,1.7721,3667.1,3667.0,1.18735]
[1754324118055,1.7721,3667.0,3666.4,1.36362]
[1754324118260,1.7721,3666.8,3666.3,0.8999]
[1754324118562,0.54535,3667.1,3666.8,0.54537]
[1754324118759,19.454,3667.0,3666.8,0.54537]
[1754324118959,19.454,3667.0,3666.5,0.8999]
[1754324118960,19.454,3667.0,3666.6,0.54541]
[1754324119160,1.7721,3666.9,3666.7,0.54539]
[1754324119355,1.7721,3666.9,3666.8,1.18737]
[1754324119560,21.2281,3666.9,3666.8,1.44527]
[1754324119759,1.7721,3666.9,3666.8,1.44527]
[1754324119959,1.7721,3666.9,3666.8,2.07847]
[1754324120358,19.446,3667.0,3666.8,1.2752]
[1754324120562,20.5817,3667.0,3666.9,0.8999]
[1754324120855,21.2181,3667.0,3666.9,0.8999]
[1754324121057,19.446,3667.0,3666.7,0.54539]
[1754324121263,19.446,3667.0,3666.8,0.54537]
[1754324121959,1.7721,3666.9,3666.8,0.54537]
[1754324122255,0.54538,3666.9,3666.1,1.36373]
[1754324122455,19.446,3667.0,3666.1,1.36373]
[1754324122456,1.7721,3666.7,3666.6,0.54541]
[1754324122666,0.6364,3666.5,3666.3,0.54545]
[1754324122856,1.7721,3666.4,3666.3,0.80335]
[1754324123058,1.1402,3666.4,3666.3,2.07855]
[1754324123259,1.7721,3666.7,3666.6,0.54542]
[1754324124059,1.7721,3666.6,3666.4,0.54544]
[1754324124255,1.7721,3666.6,3666.0,2.00577]
[1754324124256,0.6319,3666.5,3666.3,0.54545]
[1754324124558,2.31756,3666.4,3666.2,0.54547]
[1754324124866,1.7721,3666.2,3666.1,0.54548]
[1754324125259,0.54546,3666.3,3666.0,0.5455]
[1754324125457,2.31758,3666.2,3666.0,0.5455]
[1754324125652,1.7721,3666.1,3666.0,0.5455]
[1754324125860,1.7721,3666.1,3666.0,1.1875]
[1754324126067,1.7721,3666.5,3666.4,1.18744]
[1754324126265,21.1951,3666.5,3666.4,2.07854]
[1754324126565,19.416,3666.5,3666.4,2.07854]
[1754324126863,21.1881,3666.5,3666.4,1.5331]
[1754324127057,21.1881,3666.5,3666.4,0.642]
[1754324127262,20.5572,3666.5,3666.4,1.5331]
[1754324127559,1.1402,3666.5,3666.4,1.5331]
[1754324127966,1.7721,3666.5,3666.4,1.5331]
[1754324128262,21.1891,3666.5,3666.4,0.8999]
[1754324129365,1.7721,3666.4,3666.3,0.54545]
[1754324129967,2.31756,3666.3,3666.2,0.54547]
[1754324130170,1.7721,3666.3,3666.2,0.54547]
[1754324130665,0.54547,3666.3,3666.1,0.54548]
[1754324130958,2.31757,3666.3,3666.2,0.54547]
[1754324131166,1.7721,3666.2,3666.1,0.54548]
[1754324133060,19.417,3666.5,3665.8,0.8999]
[1754324133061,0.54549,3666.1,3666.0,0.5455]
[1754324133256,21.1901,3666.1,3664.9,0.2729]
[1754324133558,0.54556,3665.7,3665.5,0.54557]
[1754324133764,19.418,3665.6,3665.0,1.1283]
[1754324133965,1.7721,3665.5,3665.4,1.18758]
[1754324134167,1.7721,3665.5,3665.4,1.67388]
[1754324134860,1.7721,3665.5,3665.4,1.1283]
[1754324135063,0.54562,3665.3,3665.1,0.54563]
[1754324135263,21.1911,3665.2,3665.1,0.54563]
[1754324135462,20.5592,3665.2,3665.1,2.30713]
[1754324135866,22.4058,3665.2,3665.1,0.54563]
[1754324136057,22.4058,3665.2,3665.1,2.86343]
[1754324136265,21.2701,3665.2,3665.1,3.49663]
[1754324136764,19.419,3665.2,3664.7,0.4863]
[1754324136968,0.6364,3665.3,3665.1,2.951]
[1754324136969,1.18202,3665.3,3665.1,2.951]
[1754324137265,20.4807,3665.2,3665.1,1.1895]
[1754324137465,22.4058,3665.2,3665.1,1.1895]
[1754324137765,22.4058,3665.2,3665.1,0.7713]
[1754324138163,1.7721,3664.7,3664.6,0.5457]
[1754324138358,2.9868,3664.7,3664.6,0.5457]
[1754324138563,2.9868,3665.0,3664.9,2.86346]
[1754324138764,22.95346,3665.0,3664.8,0.54568]
[1754324138965,2.9868,3664.8,3664.7,1.9799]
[1754324139662,2.9868,3664.8,3664.7,1.4936]
[1754324139863,2.9868,3664.8,3664.7,0.8516]
[1754324140066,2.9868,3664.8,3664.7,2.292]
[1754324140265,2.9868,3664.8,3664.7,2.9636]
[1754324140266,1.2147,3664.8,3664.7,2.9636]
[1754324140466,1.22556,3665.0,3664.8,0.54568]
[1754324140668,3.60005,3665.1,3665.0,2.2838]
[1754324140872,23.02005,3665.1,3665.0,2.2838]
[1754324141466,23.02005,3665.1,3665.0,1.1813]
[1754324141773,23.02005,3665.1,3665.0,0.8429]
[1754324142170,21.7945,3665.1,3664.7,1.64819]
[1754324142364,1.1931,3664.8,3664.7,2.82949]
[1754324142568,3.0544,3664.8,3664.7,2.82949]
[1754324143077,23.02004,3665.1,3665.0,3.50105]
[1754324143373,22.4764,3665.1,3665.0,3.50105]
[1754324143675,1.873,3665.1,3665.0,3.50105]
[1754324143877,3.0544,3665.4,3665.3,2.82941]
[1754324144073,41.1303,3665.9,3665.8,2.82933]
[1754324144277,60.5523,3665.9,3665.8,3.50093]
[1754324144480,59.3709,3665.9,3665.8,3.50093]
[1754324144871,60.5523,3665.9,3665.8,3.50093]
[1754324145067,39.9489,3665.9,3665.8,3.50093]
[1754324145278,3.0544,3666.2,3666.1,2.9554]
[1754324145482,22.4764,3666.2,3666.1,2.9554]
[1754324145978,3.0544,3666.2,3666.1,2.9554]
[1754324146176,22.4764,3666.2,3666.1,2.2838]
[1754324146682,2.3848,3666.5,3666.4,2.21264]
[1754324146980,39.279,3667.0,3666.6,1.1813]
[1754324146981,1.73851,3666.7,3666.6,1.1813]
[1754324147179,23.01981,3666.7,3666.6,1.7979]
[1754324147571,23.01981,3666.7,3666.6,1.1813]
[1754324147977,1.8613,3667.8,3666.9,1.1025]
[1754324148175,0.54528,3667.5,3667.2,0.54533]
[1754324148485,1.1917,3667.4,3667.3,1.7741]
[1754324148686,1.8613,3667.4,3667.3,1.7741]
[1754324148887,1.8613,3667.4,3667.3,1.1025]
[1754324149082,1.8613,3667.4,3667.3,0.6166]
[1754324149280,1.8613,3667.1,3667.0,0.54534]
[1754324149481,21.2803,3667.1,3667.0,0.54534]
[1754324149682,21.2803,3667.1,3667.0,1.64784]
[1754324149884,1.8613,3667.5,3667.4,1.64778]
[1754324150184,2.40661,3667.4,3667.1,1.1025]
[1754324150385,1.8613,3667.4,3667.2,0.54531]
[1754324150682,1.8613,3667.3,3667.0,0.54535]
[1754324150883,1.8613,3667.2,3667.1,0.54533]
[1754324151284,1.8613,3667.2,3666.8,1.7741]
[1754324151285,1.8613,3667.0,3666.9,0.54537]
[1754324151486,0.6799,3666.9,3666.8,2.31948]
[1754324151687,1.8613,3667.2,3667.1,1.1025]
[1754324151987,0.54532,3667.3,3667.0,0.54535]
[1754324152191,0.6799,3667.1,3667.0,0.54535]
[1754324152385,1.8613,3667.1,3667.0,0.54535]
[1754324152988,1.8613,3667.1,3667.0,1.16195]
[1754324153184,0.54537,3667.0,3666.8,0.54538]
[1754324153388,1.8613,3666.9,3666.8,0.54538]
[1754324153589,1.8613,3666.9,3666.5,1.1575]
[1754324153590,0.54538,3666.9,3666.7,0.54539]
[1754324153787,1.8613,3666.8,3666.7,1.64789]
[1754324153988,1.8613,3666.8,3666.7,1.1025]
[1754324154188,0.5454,3666.7,3666.3,0.54545]
[1754324154392,1.8613,3666.6,3666.4,1.1025]
[1754324154688,1.8613,3666.5,3666.4,1.1025]
[1754324155293,0.6799,3666.5,3666.4,1.7741]
[1754324155493,1.1917,3666.5,3666.4,1.7741]
[1754324155793,3.0544,3666.5,3666.4,2.2838]
[1754324156197,3.0544,3666.5,3666.4,1.1813]
[1754324156593,3.0544,3666.3,3666.2,0.96327]
[1754324156799,3.0544,3666.3,3666.2,1.38837]
[1754324157097,3.0544,3666.3,3666.2,2.82927]
[1754324158099,3.0544,3666.3,3666.2,1.7979]
[1754324158299,3.0544,3666.3,3666.2,1.1813]
[1754324158693,3.0544,3666.3,3666.2,0.8429]
[1754324159588,3.0544,3666.3,3666.2,2.2838]
[1754324160195,19.413,3666.7,3666.6,0.54542]
[1754324160396,21.7875,3666.7,3666.6,2.82922]
[1754324160594,2.3745,3666.7,3666.6,2.82922]
[1754324160795,21.7845,3666.7,3666.6,2.82922]
[1754324160995,22.4644,3666.7,3666.6,2.82922]
[1754324161201,22.4644,3666.7,3666.6,3.50082]
[1754324161396,22.4644,3666.7,3666.6,1.72672]
[1754324161603,3.59981,3666.6,3666.5,0.54542]
[1754324162201,3.0544,3666.6,3666.5,0.54542]
[1754324162502,3.0544,3666.6,3666.5,2.82922]
[1754324162701,1.1931,3667.0,3666.9,1.38826]
[1754324162900,22.4634,3667.0,3666.9,2.82916]
[1754324163296,22.4634,3667.0,3666.8,0.54538]
[1754324163297,0.54537,3666.9,3666.8,0.54538]
[1754324163498,1.1931,3666.9,3666.8,0.54538]
[1754324163704,3.0544,3666.9,3666.8,1.72668]
[1754324163899,3.0544,3666.9,3666.8,0.4178]
[1754324164206,1.1931,3666.7,3666.6,0.54541]
[1754324164405,1.873,3666.7,3666.6,3.50081]
[1754324164793,20.5904,3667.0,3666.9,0.54537]
[1754324165000,22.4634,3667.0,3666.9,1.1813]
[1754324165206,1.1931,3666.8,3666.7,1.72669]
[1754324165505,3.0544,3666.8,3666.7,2.2838]
[1754324165694,3.0544,3666.8,3666.7,0.8429]
[1754324166500,3.0544,3666.8,3666.7,2.2838]
[1754324166808,3.0544,3666.8,3666.7,2.9554]
[1754324167203,0.7737,3666.8,3666.7,2.2838]
[1754324167402,21.7908,3666.8,3666.7,2.9554]
[1754324167701,0.7737,3666.8,3666.7,2.9554]
[1754324167899,2.5426,3667.1,3667.0,2.9554]
[1754324168101,22.4594,3667.1,3667.0,2.9554]
[1754324169205,0.54532,3667.3,3667.1,0.54534]
[1754324169403,21.277,3667.2,3667.1,3.50074]
[1754324169604,22.4584,3667.2,3667.1,3.50074]
[1754324169802,1.31904,3667.1,3667.0,0.54534]
[1754324170002,3.59974,3667.1,3667.0,0.54534]
[1754324170204,3.0544,3667.1,3667.0,1.38824]
[1754324171207,3.0544,3667.1,3667.0,3.51474]
[1754324172513,3.0544,3667.1,3667.0,2.85264]
[1754324173107,3.0544,3667.1,3667.0,2.3073]
[1754324174209,3.0544,3667.1,3667.0,0.8429]
[1754324174606,3.0544,3667.1,3667.0,1.6595]
[1754324174808,3.0544,3667.1,3667.0,2.2941]
[1754324175009,1.73846,3667.1,3666.9,0.54536]
[1754324175308,2.9094,3667.0,3666.9,3.50126]
[1754324175910,2.9094,3667.0,3666.9,1.38796]
[1754324177013,2.9094,3667.0,3666.9,2.83916]
[1754324178109,2.9094,3667.0,3666.9,0.54536]
[1754324178405,2.9094,3667.0,3666.9,2.34776]
[1754324178610,2.9094,3667.0,3666.9,2.83916]
[1754324178912,2.9094,3667.0,3666.9,2.2938]
[1754324179408,2.9094,3667.0,3666.9,1.1678]
[1754324180012,2.9094,3667.0,3666.9,2.2938]
[1754324180307,19.404,3667.2,3667.0,0.54536]
[1754324180613,39.267,3667.6,3667.4,3.5012]
[1754324180809,1.4699495,3668.5,3667.2,0.54533]
[1754324180810,0.97819301,3668.4,3668.3,0.54516]
[1754324181014,1.71387,3668.3,3668.1,0.54518]
[1754324181214,1.7751,3668.2,3668.1,1.99638]
[1754324181512,3.60571796,3668.2,3668.1,2.2938]
[1754324181717,2.4975,3667.8,3667.7,0.54524]
[1754324181912,22.3014,3667.8,3667.7,2.34764]
[1754324183003,22.3014,3667.8,3667.5,0.54527]
[1754324183004,0.433,3667.6,3667.5,0.54527]
[1754324183204,2.9094,3667.5,3667.4,0.54529]
[1754324183411,22.2984,3667.5,3667.4,3.50119]
[1754324184213,19.389,3667.5,3667.4,3.50119]
[1754324184615,20.4323,3667.5,3667.4,3.50119]
[1754324185012,21.692,3667.5,3667.4,3.50119]
[1754324185216,22.2984,3667.5,3667.4,3.50119]
[1754324185610,1.1687,3667.7,3667.6,3.50115]
[1754324185811,21.1871,3667.7,3667.6,3.50115]
[1754324186010,22.2964,3667.7,3667.6,2.83905]
[1754324186321,2.9094,3667.6,3667.5,0.54527]
[1754324186517,2.9094,3667.5,3667.4,0.54529]
[1754324186916,2.9094,3667.5,3667.3,1.126]
[1754324187117,22.2954,3667.4,3667.3,1.9686]
[1754324187316,22.2954,3667.4,3667.3,2.9559]
[1754324188012,0.6314,3668.0,3667.3,1.36327]
[1754324188217,1.1687,3667.9,3667.8,2.9559]
[1754324188417,41.60295301,3668.8,3666.8,1.36347]
[1754324188418,0.54526,3667.7,3667.0,0.6621]
[1754324188615,19.384,3667.6,3667.5,2.9559]
[1754324188810,19.384,3667.6,3667.5,3.50118]
[1754324189227,1.0433,3667.9,3667.8,3.50114]
[1754324189524,2.303,3668.2,3668.1,3.50109]
[1754324189716,21.686,3668.2,3668.1,3.50109]
[1754324190017,0.6064,3668.4,3667.8,1.36309]
[1754324190018,21.7895,3668.4,3668.3,3.50106]
[1754324190218,0.70364948,3668.4,3668.3,3.50106]
[1754324190414,3.75284,3669.2,3668.1,3.2078]
[1754324190415,6.1172,3669.2,3669.1,2.9559]
[1754324190621,5.27831033,3669.2,3669.1,3.50094]
[1754324190823,3.91121033,3669.2,3669.1,3.50094]
[1754324191019,3.91121033,3669.2,3669.1,3.00954]
[1754324191217,0.70341033,3669.2,3669.1,3.50094]
[1754324191413,1.87211033,3669.6,3669.5,1.71278]
[1754324191614,1.87211033,3669.6,3669.5,3.50088]
[1754324191615,3.61281033,3669.6,3669.5,3.50088]
[1754324191927,2.50351033,3669.6,3669.5,2.9559]
[1754324192423,0.70341033,3669.6,3669.5,2.9559]
[1754324192623,0.70341033,3669.7,3669.6,2.20417]
[1754324192920,1.4699495,3670.5,3670.4,0.54485]
[1754324193127,1.4699495,3670.7,3670.6,1.16982]
[1754324193330,1.4699495,3670.9,3670.8,0.54479]
[1754324193526,1.4699495,3670.9,3670.8,1.60279]
[1754324193922,1.4699495,3670.9,3670.8,0.625]
[1754324194128,1.7407,3670.8,3670.6,1.16982]
[1754324194424,1.2378,3670.7,3670.6,1.16982]
[1754324194829,0.6314,3670.7,3670.6,1.16982]
[1754324195228,0.6314,3670.7,3670.6,1.60282]
[1754324195417,3.2078,3670.9,3670.8,0.54479]
[1754324195418,3.8392,3670.9,3670.8,0.54479]
[1754324195622,3.8392,3670.9,3670.8,1.16979]
[1754324195825,0.6314,3670.9,3670.8,1.60279]
[1754324196224,0.6314,3670.9,3670.8,1.16979]
[1754324196529,1.7407,3670.9,3670.8,1.16979]
[1754324196725,0.6314,3670.8,3670.7,0.5448]
[1754324197030,3.8392,3671.1,3670.9,0.54476]
[1754324197229,1.7407,3671.0,3670.7,0.433]
[1754324197424,0.6314,3671.0,3670.9,0.54477]
[1754324197630,3.8392,3671.1,3671.0,0.433]
[1754324197824,0.6314,3671.1,3671.0,0.625]
[1754324198426,0.6314,3671.1,3671.0,1.4676]
[1754324199825,1.9735,3671.1,3671.0,1.4676]
[1754324200030,2.9094,3671.1,3671.0,1.4676]
[1754324200226,2.9094,3671.1,3670.9,0.54477]
[1754324200432,1.3965,3670.8,3670.7,2.00661]
[1754324200725,2.4872,3670.7,3670.6,0.54482]
[1754324200928,2.0237,3670.7,3670.6,2.00662]
[1754324201126,1.3965,3670.7,3670.6,2.00662]
[1754324201924,2.9166,3670.7,3670.6,2.00662]
[1754324202124,0.6603,3670.7,3670.6,2.00662]
[1754324204027,0.6603,3670.5,3669.8,3.2078]
[1754324204334,2.9166,3669.9,3669.8,5.21454]
[1754324204629,1.9166,3669.9,3669.8,5.21454]
[1754324204832,0.6603,3670.3,3670.2,2.71388]
[1754324205230,0.4258,3670.7,3670.6,1.69851]
[1754324205533,0.4258,3670.7,3670.6,1.523]
[1754324205534,1.8259,3670.7,3670.6,1.523]
[1754324206123,0.6603,3670.7,3670.6,2.169]
[1754324207036,1.6291,3671.0,3670.9,2.71378]
[1754324207238,2.2563,3671.0,3670.9,2.71378]
[1754324207634,2.9166,3671.0,3670.9,2.71378]
[1754324208330,1.36162,3671.8,3670.6,4.99834]
[1754324208331,1.2875,3672.1,3671.8,0.54464]
[1754324208636,0.6603,3672.0,3671.9,1.19062]
[1754324209045,1.751,3672.0,3671.9,1.55992]
[1754324209646,1.2875,3671.9,3671.8,0.54463]
[1754324209840,1.2875,3671.9,3671.8,1.55993]
[1754324210245,1.751,3671.9,3671.8,1.55993]
[1754324210834,0.6603,3671.9,3671.8,1.55993]
[1754324211146,0.4635,3672.7,3672.6,0.54452]
[1754324211334,1.0,3673.0,3672.7,0.646]
[1754324211335,0.54449,3672.9,3672.7,0.646]
[1754324211536,1.0907,3672.8,3672.7,0.646]
[1754324211741,1.1238,3672.8,3672.7,1.0153]
[1754324212243,1.0,3673.0,3672.9,0.646]
[1754324212435,1.0,3673.0,3672.9,1.4438]
[1754324212641,1.6603,3673.0,3672.9,1.0153]
[1754324213146,1.0,3673.0,3672.9,1.4438]
[1754324213937,1.0,3673.0,3672.8,0.54449]
[1754324214141,1.751,3672.9,3672.8,0.54449]
[1754324214350,1.0,3673.0,3672.9,1.4438]
[1754324215251,0.44076,3673.0,3672.9,1.4438]
[1754324215649,0.4635,3673.9,3673.2,0.54444]
[1754324215845,0.6603,3673.8,3673.6,0.54436]
[1754324216045,0.6603,3673.7,3673.6,1.19036]
[1754324216845,1.1238,3673.7,3673.6,1.19036]
[1754324217045,1.751,3673.7,3673.6,1.19036]
[1754324217249,61.7598,3674.7,3674.1,0.54429]
[1754324217250,1.751,3674.6,3674.1,0.54429]
[1754324217444,0.6603,3674.5,3673.8,0.646]
[1754324217640,3.2078,3674.7,3674.6,0.54423]
[1754324217950,3.2078,3674.7,3673.7,3.2078]
[1754324218146,1.1238,3674.3,3673.7,0.54435]
[1754324218450,0.21838141,3674.9,3674.2,3.2078]
[1754324218648,0.21838141,3674.9,3674.3,0.646]
[1754324218848,1.751,3674.6,3674.5,0.54423]
[1754324219247,3.42618141,3674.9,3674.3,0.646]
[1754324219447,3.42618141,3674.9,3673.9,0.646]
[1754324219642,3.2078,3674.5,3674.3,0.54427]
[1754324219847,1.751,3674.3,3674.0,0.54432]
[1754324220043,1.751,3674.2,3674.1,0.54429]
[1754324220248,3.2078,3674.5,3673.6,0.646]
[1754324220456,1.2875,3674.1,3673.6,0.646]
[1754324220654,3.2078,3674.5,3673.6,0.646]
[1754324220851,3.2078,3674.5,3674.2,0.54429]
[1754324220852,1.0907,3674.3,3674.2,0.54429]
[1754324221447,1.751,3674.3,3674.1,0.54429]
[1754324221651,1.0907,3673.9,3673.8,0.54433]
[1754324221849,0.5444,3673.5,3672.5,3.2078]
[1754324222053,1.751,3673.2,3672.6,0.21229734]
[1754324222250,1.0907,3673.0,3672.8,1.19049]
[1754324222455,0.6603,3672.9,3672.8,0.97369]
[1754324222652,0.6603,3672.9,3672.8,0.21248724]
[1754324222653,1.2875,3672.9,3672.8,0.21248724]
[1754324222847,1.751,3672.5,3672.1,0.54458]
[1754324223050,3.75234,3672.5,3672.0,0.5446]
[1754324223249,1.751,3672.2,3671.7,0.859]
[1754324223557,1.751,3672.0,3671.9,1.19063]
[1754324223752,0.6603,3672.0,3671.9,1.40363]
[1754324223948,1.1238,3672.0,3671.9,1.40363]
[1754324224151,0.6603,3672.0,3671.9,1.40363]
[1754324224552,0.5445,3672.8,3672.7,0.54451]
[1754324224553,0.6603,3672.8,3672.7,0.54451]
[1754324224750,0.4635,3672.8,3672.7,0.54451]